[Event "Israel National League 2024"]
[Site "Israel"]
[Date "2024.02.09"]
[Round "5.5"]
[White "Klar, Nir"]
[Black "Flom, Gabriel"]
[Result "0-1"]
[ECO "B68"]
[WhiteElo "2157"]
[BlackElo "2421"]
[Annotator "RC"]
[PlyCount "122"]
[EventDate "2024.01.07"]
[EventType "team-tourn"]
[EventCountry "ISR"]
[SourceTitle "playchess.com"]
[Source "ChessBase"]
[SourceQuality "1"]
[TimeControl "40/5400+30:1800+30"]

1. e4 {[%emt 0:00:14]} c5 {[%emt 0:00:55]} 2. Nc3 {[%emt 0:00:30]} Nc6 {[%emt 0:01:14]} 3. Nf3 {[%emt 0:00:08]} d6 {[%emt 0:00:18]} 4. d4 {[%emt 0:00:05]} cxd4 {[%emt 0:00:13]} 5. Nxd4 {[%emt 0:00:05]} Nf6 {[%emt 0:00:04]} 6. Bg5 {[%emt 0:00:36]} e6 {[%emt 0:00:10]} 7. Qd2 {[%emt 0:00:05]} a6 {[%emt 0:00:09]} 8. O-O-O {[%emt 0:00:09]} Be7 {[%emt 0:00:05]} 9. f4 {[%emt 0:00:09]} Bd7 {[%emt 0:00:20]} 10. Nf3 {[%emt 0:02:09]} b5 {[%emt 0:00:08]} 11. e5 {[%emt 0:00:44]} b4 {[%emt 0:00:05]} 12. exf6 {[%emt 0:00:09]} bxc3 {[%emt 0:01:21]} 13. Qxc3 {[%emt 0:00:08]} gxf6 {[%emt 0:00:09]} 14. Bh4 {[%emt 0:00:07]} Rg8 {[%emt 0:04:09]} 15. Kb1 {[%emt 0:01:15]} a5 {[%emt 0:02:36]} 16. h3 {[%emt 0:05:26]} Rc8 {[%emt 0:02:02]} 17. Qe3 {[%emt 0:18:39]} h5 {[%emt 0:03:54]} 18. Be2 {[%emt 0:11:48]} Rb8 {[%emt 0:20:30]} 19. g4 {[%emt 0:14:17]} hxg4 {[%emt 0:00:45]} 20. hxg4 {[%emt 0:00:16]} Qb6 {[%emt 0:00:35]} 21. Qc3 {[%emt 0:09:41]} Qb4 {[%emt 0:01:39]} 22. Bxf6 {[%emt 0:02:34]} Bxf6 {[%emt 0:01:46]} 23. Qxf6 {[%emt 0:00:02]} Ne5 {[%emt 0:00:07]} 24. b3 {[%emt 0:01:20]} Nxg4 {[%emt 0:00:11]} 25. Qh4 {[%emt 0:09:04]} Ne3 {[%emt 0:18:47]} 26. Rd4 {[%emt 0:07:20]} Qc5 {[%emt 0:11:36]} 27. Qh7 {[%emt 0:01:53]} Rf8 {[%emt 0:00:11]} 28. Qd3 {[%emt 0:03:46]} Nf5 {[%emt 0:00:57]} 29. Rc4 {[%emt 0:02:27]} Qe3 {[%emt 0:01:09]} 30. Qxe3 {[%emt 0:03:33]} Nxe3 {[%emt 0:00:20]} 31. Re4 {[%emt 0:00:01]} Nf5 {[%emt 0:00:24]} 32. Re1 {[%emt 0:01:22]} Rg8 {[%emt 0:08:05]} 33. Bd1 {[%emt 0:01:52]} Ke7 {[%emt 0:06:49]} 34. Nd4 {[%emt 0:00:14]} Ng3 {[%emt 0:00:39]} 35. R4e3 {[%emt 0:00:10]} Kf6 {[%emt 0:00:11]} 36. Rc3 {[%emt 0:01:42]} Rb4 {[%emt 0:02:10]} 37. Rd3 {[%emt 0:01:11]} Rg7 {[%emt 0:04:20]} 38. c3 {[%emt 0:00:23]} Rb6 {[%emt 0:01:10]} 39. Kb2 {[%emt 0:02:06]} d5 {[%emt 0:04:42]} 40. Rde3 {[%emt 0:02:02]} Nf5 {[%emt 0:01:03]} 41. Rd3 {[%emt 0:14:23]} Rg2+ {[%emt 0:01:43]} 42. Ka3 {[%emt 0:02:24]} Nd6 {[%emt 0:03:52]} 43. Re2 {[%emt 0:02:07]} Rg1 {[%emt 0:01:30]} 44. Bc2 {[%emt 0:06:02]} Nb5+ {[%emt 0:02:42]} 45. Kb2 {[%emt 0:00:06]} a4 {[%emt 0:00:45]} 46. Bd1 {[%emt 0:02:35]} a3+ {[%emt 0:02:47]} 47. Kc2 {[%emt 0:00:20]} Rf1 {[%emt 0:00:50]} 48. Nf3 {[%emt 0:01:12]} Rc6 {[%emt 0:02:39]} 49. Ree3 {[%emt 0:04:23]} Rc7 {[%emt 0:01:57]} 50. Kd2 {[%emt 0:00:35]} Nd6 {[%emt 0:00:47]} 51. Ke2 {[%emt 0:00:56]} Rh1 {[%emt 0:00:04]} 52. Kf2 {[%emt 0:00:47]} Nf5 {[%emt 0:04:02]} 53. Re1 {[%emt 0:00:17]} Bb5 {[%emt 0:04:47]} 54. c4 {[%emt 0:01:04]} dxc4 {[%emt 0:00:58]} 55. bxc4 {[%emt 0:00:33]} Rxe1 {[%emt 0:00:16]} 56. Nxe1 {[%emt 0:00:06]} Rxc4 {[%emt 0:00:16]} 57. Ng2 {[%emt 0:00:25]} Rb4 {[%emt 0:02:51]} 58. Rb3 {[%emt 0:00:32]} Rxb3 {[%emt 0:10:46]} 59. Bxb3 {[%emt 0:00:01]} Nd4 {[%emt 0:00:00]} 60. Ne3 {[%emt 0:00:20]} Nxb3 {[%emt 0:00:00]} 61. axb3 {[%emt 0:00:00]} Bd3 {[%emt 0:00:00]} 0-1

[Event "Israel National League 2024"]
[Site "Israel"]
[Date "2024.02.09"]
[Round "5.6"]
[White "Solomon, Asif"]
[Black "Erenberg, Shlomy"]
[Result "1-0"]
[ECO "E06"]
[WhiteElo "2242"]
[BlackElo "2103"]
[Annotator "NA RC"]
[PlyCount "79"]
[EventDate "2024.01.07"]
[EventType "team-tourn"]
[EventCountry "ISR"]
[SourceTitle "playchess.com"]
[Source "ChessBase"]
[SourceQuality "1"]
[TimeControl "40/5400+30:1800+30"]

1. d4 {[%emt 0:00:26]} d5 {[%emt 0:00:28]} 2. c4 {[%emt 0:00:10]} e6 {[%emt 0:00:10]} 3. Nf3 {[%emt 0:00:25]} Nf6 {[%emt 0:00:24]} 4. g3 {[%emt 0:00:15]} Bb4+ {[%emt 0:00:39]} 5. Bd2 {[%emt 0:01:14]} Be7 {[%emt 0:00:26]} 6. Bg2 {[%emt 0:00:04]} O-O {[%emt 0:00:24]} 7. O-O {[%emt 0:00:04]} c6 {[%emt 0:00:30]} 8. Qc2 {[%emt 0:00:45]} b6 {[%emt 0:00:27]} 9. Bf4 {[%emt 0:03:21]} Ba6 {[%emt 0:05:06] E06: Closed Catalan: Early deviations.} 10. Ne5 {[%emt 0:06:46]} dxc4 {[%emt 0:09:06]} 11. Rd1 {[%emt 0:12:05]} Nd5 {[%emt 0:03:34]} 12. Nxc4 {[%emt 0:02:58]} Nd7 {[%emt 0:16:40]} 13. Bd6 {[%emt 0:08:16]} Rc8 {[%emt 0:03:55]} 14. e4 {[%emt 0:11:11]} Bxc4 {[%emt 0:03:38]} 15. Bxe7 {[%emt 0:00:36]} Qxe7 {[%emt 0:00:57]} 16. Qxc4 {[%emt 0:00:07]} b5 {[%emt 0:00:38]} 17. Qe2 {[%emt 0:12:33]} N5b6 {[%emt 0:01:25]} 18. e5 {[%emt 0:01:24]} c5 $14 {[%emt 0:05:06]} 19. Nc3 {[%emt 0:03:43]} cxd4 {[%emt 0:16:10]} 20. Nxb5 {[%emt 0:01:09]} d3 {[%emt 0:14:10]} 21. Rxd3 {[%emt 0:02:14]} Rc5 {[%emt 0:00:07]} 22. Nxa7 {[%emt 0:04:37]} Nxe5 {[%emt 0:01:43]} 23. Ra3 {[%emt 0:01:04]} Qc7 {[%emt 0:07:39]} 24. Rd1 {[%emt 0:04:25]} Rc2 {[%emt 0:01:03]} 25. Qb5 {[%emt 0:07:33]} Nec4 {[%emt 0:01:18]} 26. Ra6 {[%emt 0:02:49]} Rxb2 {[%emt 0:00:13]} 27. Qh5 {[%emt 0:03:23]} g6 {[%emt 0:00:38]} 28. Qg5 {[%emt 0:01:29]} h6 {[%emt 0:02:27]} 29. Qf6 {[%emt 0:03:23]} Rd2 {[%emt 0:01:54]} 30. Rxd2 {[%emt 0:03:05]} Nxd2 {[%emt 0:00:01]} 31. Nc6 {[%emt 0:00:18]} Nd5 {[%emt 0:02:04]} 32. Bxd5 {[%emt 0:02:10]} exd5 {[%emt 0:00:01]} 33. Ra7 {[%emt 0:02:08]} Ne4 {[%emt 0:01:00]} 34. Qxg6+ {[%emt 0:00:47]} fxg6 {[%emt 0:00:17]} 35. Rxc7 {[%emt 0:00:04]} Rxf2 {[%emt 0:02:55]} 36. Ne7+ {[%emt 0:00:01]} Kf7 {[%emt 0:00:45]} 37. Nxd5+ {[%emt 0:00:10]} Kf8 {[%emt 0:01:02]} 38. Nf4 {[%emt 0:02:18]} g5 {[%emt 0:00:30]} 39. Ng6+ {[%emt 0:00:30]} Kg8 {[%emt 0:00:30]} 40. Re7 {[%emt 0:00:30]} 1-0

[Event "Israel National League 2024"]
[Site "Israel"]
[Date "2024.02.09"]
[Round "5.7"]
[White "Erigaisi Arjun"]
[Black "Nabaty, Tamir"]
[Result "1-0"]
[ECO "A29"]
[WhiteElo "2738"]
[BlackElo "2646"]
[Annotator "TA"]
[PlyCount "113"]
[EventDate "2024.01.07"]
[EventType "team-tourn"]
[EventCountry "ISR"]
[SourceTitle "playchess.com"]
[Source "ChessBase"]
[SourceQuality "1"]
[TimeControl "40/5400+30:1800+30"]

{[%evp 41,113,9,24,10,8,9,11,12,4,0,11,0,0,0,0,0,2,0,0,0,0,0,0,0,0,0,73,73,73,73,59,27,102,97,131,122,124,123,162,110,175,180,172,164,128,118,177,179,209,105,193,170,304,208,930,516,450,368,349,346,585,585,580,457,589,554,578,578,633,585,625,621,642,597]} 1. c4 {[%emt 0:00:32]} e5 {[%emt 0:00:07]} 2. g3 {[%emt 0:00:33]} Nf6 {[%emt 0:00:24]} 3. Bg2 {[%emt 0:00:07]} d5 {[%emt 0:00:20]} 4. cxd5 {[%emt 0:00:06]} Nxd5 {[%emt 0:00:05]} 5. Nc3 {[%emt 0:00:37]} Nf6 {[%emt 0:00:31]} 6. Nf3 {[%emt 0:01:21]} Nc6 {[%emt 0:00:23]} 7. O-O {[%emt 0:00:55]} h6 {[%emt 0:00:23] outshines the older 7...Be7. A29: English Opening: Four Knights Variation with 4 g3.} 8. b4 $5 {[%emt 0:04:11][%mdl 4] Exploring less charted territory.} e4 {[%emt 0:02:48]} 9. Ne1 {[%emt 0:00:07]} Bxb4 {[%emt 0:01:35]} 10. Nxe4 {[%emt 0:01:25]} Nxe4 {[%emt 0:00:58]} 11. Bxe4 {[%emt 0:00:06]} O-O {[%emt 0:00:10]} 12. Nc2 $146 {[%emt 0:04:52]} ({Predecessor:} 12. Rb1 Ba5 13. e3 Re8 14. Bg2 Ne5 15. d4 c5 16. Bb2 Nc4 17. Nd3 cxd4 18. Bxd4 {½-½ Vachier Lagrave,M (2731)-So,W (2752) CCT Final playoff rapid 2023 (3.3)}) 12... Ba5 {[%emt 0:06:28]} 13. Bg2 {[%emt 0:03:37]} Be6 {[%emt 0:08:27]} 14. d4 {[%emt 0:07:19]} Bd5 {[%emt 0:06:13]} 15. Qd3 {[%emt 0:03:42]} Bxg2 {[%emt 0:19:09]} 16. Kxg2 {[%emt 0:02:50]} Nb4 {[%emt 0:00:10]} 17. Nxb4 {[%emt 0:00:25]} Bxb4 {[%emt 0:00:02]} 18. Rb1 {[%emt 0:12:04]} Qe7 {[%emt 0:00:17]} 19. e4 {[%emt 0:09:27]} c6 {[%emt 0:04:20]} 20. f3 {[%emt 0:02:43]} Rfd8 {[%emt 0:05:34]} 21. Rd1 {[%emt 0:02:30]} Rd7 {[%emt 0:02:48]} 22. Qb3 {[%emt 0:01:58]} Ba5 {[%emt 0:02:46]} 23. Qa4 {[%emt 0:00:26]} Qd8 {[%emt 0:06:01]} 24. Bb2 {[%emt 0:03:02]} Bb6 {[%emt 0:00:36]} 25. Ba1 {[%emt 0:04:33]} Qe8 {[%emt 0:02:03]} 26. Rd2 {[%emt 0:02:30]} Rad8 {[%emt 0:02:36]} 27. Rbd1 {[%emt 0:01:37]} Qe6 {[%emt 0:04:04]} 28. Qc2 {[%emt 0:00:13]} Qg6 {[%emt 0:02:16]} 29. Bc3 {[%emt 0:04:53]} h5 {[%emt 0:00:30]} 30. a4 {[%emt 0:07:20]} Bc7 {[%emt 0:08:01]} 31. Kh1 {[%emt 0:01:22]} Qe6 {[%emt 0:07:31]} 32. Bb2 {[%emt 0:02:41]} Ba5 {[%emt 0:01:02]} 33. Rd3 {[%emt 0:00:49]} f5 {[%emt 0:01:39]} (33... Bb4 $11 {remains equal.}) 34. d5 $1 $16 {[%emt 0:01:08]} cxd5 {[%emt 0:05:21]} 35. exd5 {[%emt 0:00:05]} Qg6 {[%emt 0:00:03]} (35... Rxd5 $2 36. Qb3 $18) 36. Be5 {[%emt 0:03:20]} Bb4 {[%emt 0:00:31]} (36... Qe8 $11 37. f4 Rc8) 37. d6 $16 {[%emt 0:00:58]} Qe6 {[%emt 0:01:16]} 38. Rd5 {[%emt 0:00:20]} a5 {[%emt 0:01:07]} (38... Bxd6 $2 39. Qd3 $18) 39. Bf4 {[%emt 0:01:40]} g6 {[%emt 0:00:41]} (39... Bxd6 $2 40. Qd3 $18 (40. Rxf5 $2 Bxf4 41. Rf1 Rd2 $19)) 40. Qd3 {[%emt 0:05:45]} (40. Kg2 $18) 40... Qf7 {[%emt 0:00:32]} (40... Rc8 $16) 41. Qb5 {[%emt 0:34:01]} Rc8 {[%emt 0:04:03]} 42. h4 {[%emt 0:00:00]} Qe6 {[%emt 0:03:34]} 43. Re5 {[%emt 0:00:00]} Qf7 {[%emt 0:06:38]} (43... Qb3 $16 44. Rf1 Qf7) 44. Re3 $1 $18 {[%emt 0:00:00]} Rc2 {[%emt 0:05:08] [#]} 45. Rd5 {[%emt 0:00:00]} (45. Qd3 $1 $18 {[%cal Rd3c2]} Rc3 46. Qe2 Rxe3 47. Qxe3) 45... Rc6 {[%emt 0:07:59]} (45... Kg7 $16 46. Re7 Rxe7 47. dxe7 Bxe7) 46. Kg2 {[%emt 0:00:00]} Rc8 {[%emt 0:04:54]} (46... Bxd6 $2 47. Qd3 $18 (47. Qxa5 Bxf4 48. Rxd7 Qxd7 $11)) (46... Kg7 $142 47. Qd3 Kh7) 47. Kh3 {[%emt 0:00:28]} Re8 $2 {[%emt 0:00:13]} (47... Rc6 48. Re2 Kh8 (48... Bxd6 $2 49. Qd3 $18)) 48. Rxe8+ {[%emt 0:00:54]} Qxe8 {[%emt 0:00:01]} 49. Re5 {[%emt 0:01:05]} Qf7 {[%emt 0:00:23]} 50. Re2 {[%emt 0:01:37]} (50. Rd5 Kf8 51. Rd3 Kg7 52. Qe5+ Kg8 $18) 50... Bxd6 $2 {[%emt 0:01:42] [#]} (50... Kh7 {was necessary.} 51. Rc2 Bxd6) 51. Rd2 $1 $18 {[%emt 0:00:11]} ({Not} 51. Qxa5 Bxf4 52. gxf4 Kh7 $11) 51... Qe6 {[%emt 0:00:20]} 52. Qd3 {[%emt 0:00:28]} ({And not} 52. Qxa5 Bxf4 53. Rxd7 Qxd7 $11) 52... Qe1 {[%emt 0:01:14]} 53. Rd1 {[%emt 0:00:33]} ({Worse is} 53. Bxd6 Rxd6 54. Qxd6 Qh1+ 55. Rh2 Qf1+ 56. Rg2 Qh1+ 57. Rh2 Qf1+ 58. Rg2 Qh1+ 59. Rh2 $11) 53... Qe6 {[%emt 0:00:06]} 54. Bxd6 {[%emt 0:00:52]} f4+ {[%emt 0:00:48]} 55. Kg2 {[%emt 0:00:04]} fxg3 {[%emt 0:00:36]} 56. Kxg3 {[%emt 0:00:37]} Kf7 {[%emt 0:00:30]} 57. Qd4 {[%emt 0:00:18]} 1-0

[Event "Israel National League 2024"]
[Site "Israel"]
[Date "2024.02.09"]
[Round "5.8"]
[White "Predke, Alexandr"]
[Black "Gelfand, Boris"]
[Result "1/2-1/2"]
[ECO "A34"]
[WhiteElo "2668"]
[BlackElo "2664"]
[Annotator "TA"]
[PlyCount "95"]
[EventDate "2024.01.07"]
[EventType "team-tourn"]
[EventCountry "ISR"]
[SourceTitle "playchess.com"]
[Source "ChessBase"]
[SourceQuality "1"]
[TimeControl "40/5400+30:1800+30"]

{[%evp 48,95,322,339,335,309,358,342,401,371,372,369,395,243,224,-93,-99,-89,-100,-122,-109,-517,-509,-491,-468,-425,-274,-274,-272,-445,0,0,0,0,0,0,0,0,0,0,0,0,0,0,0,0,0,0,0,0]} 1. c4 {[%emt 1:03:55]} c5 {[%emt 1:27:18]} 2. Nf3 {[%emt 0:00:30]} Nf6 {[%emt 0:00:30]} 3. Nc3 {[%emt 0:00:30]} Nc6 {[%emt 0:00:30]} 4. g3 {[%emt 0:00:30]} d5 {[%emt 0:00:30]} 5. d4 {[%emt 0:00:30]} cxd4 {[%emt 0:00:30]} 6. Nxd4 {[%emt 0:00:30]} e5 {[%emt 0:00:30] A34: Symmetrical English: 2 Nc3, lines with ...d5.} 7. Nxc6 {[%emt 0:00:30]} bxc6 {[%emt 0:00:30]} 8. Bg2 {[%emt 0:00:30]} d4 {[%emt 0:00:30]} 9. Bxc6+ {[%emt 0:00:30]} Bd7 {[%emt 0:00:30]} 10. Bxa8 {[%emt 0:00:30]} Qxa8 {[%emt 0:00:30]} 11. Nd5 {[%emt 0:00:30]} Nxd5 {[%emt 0:00:30]} 12. cxd5 {[%emt 0:00:30]} Qxd5 {[%emt 0:00:30]} 13. O-O {[%emt 0:00:30]} Bd6 {[%emt 0:00:30]} 14. Qb3 {[%emt 0:00:30]} Qa8 $146 {[%emt 0:00:30]} ({Predecessor:} 14... Qc6 15. Qf3 Qxf3 16. exf3 f6 17. f4 Bb5 18. Rd1 Kd7 19. Bd2 Rb8 20. fxe5 fxe5 {½-½ Koestner,W (2174)-Warzecha,H (2247) VW-Cup8 Gr16 email 2015}) 15. Bd2 {[%emt 0:00:30]} O-O {[%emt 0:00:30]} 16. Rfc1 {[%emt 0:00:30]} Rb8 {[%emt 0:00:30]} 17. Qc2 {[%emt 0:00:30]} h5 {[%emt 0:00:30]} 18. b4 {[%emt 0:00:30]} h4 {[%emt 0:00:30]} 19. f3 {[%emt 0:00:30]} Bb5 {[%emt 0:00:30]} 20. Kf2 {[%emt 0:00:30]} d3 {[%emt 0:00:30]} 21. exd3 {[%emt 0:00:30]} Rd8 {[%emt 0:00:30]} 22. a4 {[%emt 0:00:30]} Bxd3 {[%emt 0:00:30]} 23. Qc6 {[%emt 0:00:30]} Qb8 {[%emt 0:00:30]} 24. b5 {[%emt 0:00:30]} Bf5 {[%emt 0:00:30]} (24... e4 $142 25. f4 g5 26. Be3 (26. fxg5 $2 Bxg3+ 27. Kg2 h3+ $19)) 25. Be3 $18 {[%emt 0:00:30]} (25. gxh4 $2 e4 26. Bg5 (26. fxe4 Bc5+ 27. Qxc5 Qxh2+ 28. Kf3 Rxd2) 26... Bf4 27. Bxd8 Qxd8 $19) 25... Bc8 {[%emt 0:00:30]} 26. Qe4 {[%emt 0:00:30]} (26. gxh4 Bb7 27. Qc2 e4 $15) 26... Bb7 {[%emt 0:00:30]} 27. Qxh4 {[%emt 0:00:30]} Re8 {[%emt 0:00:30]} 28. Rc3 {[%emt 0:00:30]} e4 {[%emt 0:00:30]} 29. Rd1 {[%emt 0:00:30]} exf3 {[%emt 0:00:30]} 30. Qc4 {[%emt 0:00:30]} Qd8 {[%emt 0:00:30]} 31. Rcd3 $2 {[%emt 0:00:30]} (31. Bxa7 $2 Bc5+ (31... Bxg3+ 32. Kxg3 Qxd1 33. Bf2 $19) 32. Bxc5 Qxd1 $19) (31. Kg1 $1 $18) 31... Qd7 $1 $17 {[%emt 0:00:30]} 32. Qh4 {[%emt 0:00:30]} (32. Rxd6 $2 Qh3 33. Ke1 Qg2 $19 (33... Rxe3+ 34. Kd2 $11) (33... Rxe3+ 34. Kd2 $11)) 32... Qe6 $1 {[%emt 0:00:30]} 33. Kg1 {[%emt 0:00:30]} (33. Rxd6 $2 Qxe3+ 34. Kf1 Qe2+ 35. Kg1 Qg2#) 33... Be7 $1 {[%emt 0:00:30]} 34. Qf4 $2 {[%emt 0:00:30][%mdl 8192]} (34. Qd4 $17 f2+ 35. Kxf2 (35. Bxf2 $2 Qh3 $19)) 34... g5 $1 $19 {[%emt 0:00:30]} 35. Qd4 {[%emt 0:00:30]} f2+ $1 {[%emt 0:00:30]} 36. Kxf2 {[%emt 0:00:30]} Qf5+ {[%emt 0:00:30]} 37. Ke1 {[%emt 0:00:30] [#]} (37. Kg1 Bf6 (37... Qf3 $2 38. Qh8+ Kxh8 39. Bd4+ Kg8 40. Rxf3 $19) 38. Qxa7 Qf3 $19) 37... Bf6 $1 {[%emt 0:00:30]} 38. Qd7 $2 {[%emt 0:00:30] [#]} (38. Qxa7 {only move.} Qf3 39. Qb6) 38... Qxd7 $2 {[%emt 0:00:30]} ({Black should play} 38... Qe4 $1 $19 {[%cal Re4h1] ...Qh1+ would now be deadly.} 39. Qh3 g4 (39... Qxa4 40. Kf2 $17) (39... Qf3 40. Kd2 $15)) 39. Rxd7 $11 {[%emt 0:00:30]} Rxe3+ {[%emt 0:00:30]} 40. Kf2 {[%emt 0:00:30]} (40. Kd2 $5 Re7 $8 41. Rxe7 Bxe7 42. a5 $17) 40... Rf3+ {[%emt 0:00:30]} 41. Ke2 {[%emt 0:30:30]} Be4 {[%emt 0:30:30]} 42. Rf1 {[%emt 0:00:30]} g4 {[%emt 0:00:30]} 43. Rxf3 {[%emt 0:00:30]} gxf3+ {[%emt 0:00:30]} 44. Ke3 {[%emt 0:00:30]} Bc3 {[%emt 0:00:30]} 45. Rd1 $1 {[%emt 0:00:30]} (45. Kxe4 $2 f2 46. Kd3 (46. Rxa7 $2 f1=Q $19) (46. Rd8+ $2 Kg7 $19) 46... f1=Q+ $19 (46... f1=B+ 47. Kxc3 a6 48. b6 Bg2 49. b7 Bxb7 50. Rxb7 Kg7 51. a5)) 45... Bb7 {[%emt 0:00:30]} 46. Rd7 $1 {[%emt 0:00:30]} Be4 $1 {[%emt 0:00:30]} 47. Rd1 $1 {[%emt 0:00:30]} (47. Kxe4 $2 {too greedy.} f2 48. Kd3 (48. Rxa7 $2 {perishes.} f1=Q $19) (48. Rd8+ $2 Kg7 $19) 48... f1=Q+ $19 (48... f1=B+ 49. Kxc3 Kf8 50. Rxa7 Ke8 51. b6 Kd8 52. Ra8+ Ke7 53. b7)) 47... Bb7 {[%emt 0:00:30]} 48. Rd7 {[%emt 0:00:30]} 1/2-1/2

[Event "Israel National League 2024"]
[Site "Israel"]
[Date "2024.02.09"]
[Round "5.9"]
[White "Rodshtein, Maxim"]
[Black "Roiz, Michael"]
[Result "1/2-1/2"]
[ECO "C77"]
[WhiteElo "2580"]
[BlackElo "2575"]
[Annotator "RC"]
[PlyCount "36"]
[EventDate "2024.01.07"]
[EventType "team-tourn"]
[EventCountry "ISR"]
[SourceTitle "playchess.com"]
[Source "ChessBase"]
[SourceQuality "1"]
[TimeControl "40/5400+30:1800+30"]

1. e4 {[%emt 0:00:12]} e5 {[%emt 0:01:25]} 2. Nf3 {[%emt 0:00:09]} Nc6 {[%emt 0:00:04]} 3. Bb5 {[%emt 0:00:47]} a6 {[%emt 0:00:25]} 4. Ba4 {[%emt 0:00:08]} Nf6 {[%emt 0:00:04]} 5. d3 {[%emt 0:02:24]} d6 {[%emt 0:02:41]} 6. c3 {[%emt 0:04:17]} g6 {[%emt 0:00:40]} 7. O-O {[%emt 0:00:33]} Bg7 {[%emt 0:00:05]} 8. Re1 {[%emt 0:06:30]} O-O {[%emt 0:01:24]} 9. h3 {[%emt 0:00:21]} Re8 {[%emt 0:08:13]} 10. Be3 {[%emt 0:03:02]} b5 {[%emt 0:08:05]} 11. Bc2 {[%emt 0:01:07]} a5 {[%emt 0:01:51]} 12. Nbd2 {[%emt 0:05:15]} a4 {[%emt 0:02:46]} 13. a3 {[%emt 0:07:56]} Bd7 {[%emt 0:13:43]} 14. d4 {[%emt 0:10:43]} Na5 {[%emt 0:00:58]} 15. Bd3 {[%emt 0:01:43]} Rb8 {[%emt 0:11:37]} 16. Qc2 {[%emt 0:08:23]} Qe7 {[%emt 0:09:09]} 17. dxe5 {[%emt 0:29:05]} dxe5 {[%emt 0:00:17]} 18. c4 {[%emt 0:00:10]} b4 {[%emt 0:01:19]} 1/2-1/2

[Event "Israel National League 2024"]
[Site "Israel"]
[Date "2024.02.09"]
[Round "5.10"]
[White "Steinberg, Nitzan"]
[Black "Zanan, Evgeny"]
[Result "1/2-1/2"]
[ECO "C03"]
[WhiteElo "2551"]
[BlackElo "2487"]
[Annotator "TA"]
[PlyCount "118"]
[EventDate "2024.01.07"]
[EventType "team-tourn"]
[EventCountry "ISR"]
[SourceTitle "playchess.com"]
[Source "ChessBase"]
[SourceQuality "1"]
[TimeControl "40/5400+30:1800+30"]

{[%evp 53,118,175,182,126,600,139,124,76,89,14,16,16,18,18,18,19,19,19,19,19,19,0,0,0,0,0,0,0,0,0,0,0,0,0,0,0,0,0,0,0,0,0,0,0,0,0,0,0,0,0,0,0,0,0,0,0,0,0,0,0,0,0,0,0,0,0,0]} 1. e4 {[%emt 0:00:08]} e6 {[%emt 0:00:25]} 2. d4 {[%emt 0:00:47]} d5 {[%emt 0:02:08]} 3. Nd2 {[%emt 0:04:49]} c5 {[%emt 0:00:21]} 4. Ngf3 {[%emt 0:02:35]} Nf6 {[%emt 0:04:36]} 5. exd5 {[%emt 0:01:37]} Nxd5 {[%emt 0:01:21]} 6. Nb3 {[%emt 0:04:37]} cxd4 {[%emt 0:03:30]} 7. Nbxd4 {[%emt 0:00:36]} Be7 {[%emt 0:00:30]} 8. c3 {[%emt 0:05:13]} O-O {[%emt 0:01:05]} 9. Bd3 {[%emt 0:00:26]} Nd7 {[%emt 0:10:44] The old main line. C03: French Tarrasch: Unusual Black 3rd moves.} 10. O-O {[%emt 0:01:27]} a6 {[%emt 0:02:56]} 11. Re1 {[%emt 0:03:04]} Qc7 {[%emt 0:09:11]} 12. Bc2 {[%emt 0:07:11]} N7f6 {[%emt 0:06:51]} 13. Ne5 {[%emt 0:13:55]} Bd6 {[%emt 0:03:35]} 14. Ndf3 {[%emt 0:02:40]} b5 {[%emt 0:08:05]} 15. Qd4 $146 {[%emt 0:02:21]} ({Predecessor:} 15. Qe2 Bb7 16. Bg5 h6 17. Bd2 Rad8 18. Rad1 Nb4 19. Bb1 Nc6 20. Bf4 Ne7 21. Nd4 {0-1 Klundt,K (2358)-Nothnagel,H (2303) Hessenliga 1213 2012 (8.2)}) 15... Bb7 {[%emt 0:02:11]} 16. Qh4 {[%emt 0:02:30]} Ne7 {[%emt 0:09:45]} 17. Bg5 {[%emt 0:04:58]} Ng6 {[%emt 0:04:13]} 18. Nxg6 {[%emt 0:03:36]} hxg6 {[%emt 0:02:24]} 19. Bxf6 {[%emt 0:12:35]} Bxf3 {[%emt 0:15:16]} 20. Bg5 {[%emt 0:06:38]} Bd5 {[%emt 0:00:24]} 21. Rad1 {[%emt 0:02:04]} Rfe8 {[%emt 0:04:50]} 22. Re3 {[%emt 0:03:28]} f5 {[%emt 0:05:00]} 23. g4 {[%emt 0:02:14]} Bf4 {[%emt 0:00:33]} 24. Rh3 {[%emt 0:04:08]} Bxg5 {[%emt 0:00:25]} 25. Qxg5 {[%emt 0:00:06]} Qc4 {[%emt 0:00:21]} 26. gxf5 {[%emt 0:02:49]} gxf5 {[%emt 0:01:03]} 27. Rg3 {[%emt 0:01:59]} Ra7 {[%emt 0:00:13] [#]} 28. Bb3 {[%emt 0:00:24]} (28. Qh5 $1 $18 {[%cal Rh5e8]} Rf8 29. Bb3) 28... Qc5 $2 {[%emt 0:01:34][%mdl 8192]} (28... Qc6 $16) 29. Bxd5 $2 {[%emt 0:01:24]} (29. Rxd5 $18 exd5 30. Qxf5) 29... exd5 $16 {[%emt 0:00:05] [#]} 30. Rd4 {[%emt 0:01:38]} ({Reject} 30. Qxf5 $6 Rf7 31. Qc2 (31. Qxd5 $2 {perishes.} Re1+ 32. Rxe1 Qxd5 $19) 31... Qc4 $11) ({White should try} 30. Qh5 $1 {[%cal Rh5e8]} Qc6 31. Rh3 (31. Qxf5 Rf7 $16)) 30... Rf7 $16 {[%emt 0:00:46]} 31. Re3 {[%emt 0:01:50]} (31. Rh4 $16 {Hoping for Qh6.} f4 32. Rxf4) 31... Rxe3 $11 {[%emt 0:00:37]} 32. Qxe3 {[%emt 0:00:29]} Re7 {[%emt 0:00:41]} 33. Qg5 {[%emt 0:01:13]} Re4 {[%emt 0:00:36]} 34. Qd8+ {[%emt 0:00:18]} Kh7 {[%emt 0:00:31]} 35. Qxd5 {[%emt 0:01:22]} Qxd5 {[%emt 0:00:13]} 36. Rxd5 {[%emt 0:00:01]} Re2 {[%emt 0:00:09]} 37. b4 {[%emt 0:00:46]} g6 {[%emt 0:00:31]} 38. a4 {[%emt 0:00:23]} bxa4 {[%emt 0:00:41]} 39. Ra5 {[%emt 0:00:01]} Rc2 {[%emt 0:00:15]} 40. Rxa4 {[%emt 0:00:11]} Rxc3 {[%emt 0:00:11]} 41. Rxa6 {[%emt 0:30:02]} Rb3 {[%emt 0:30:54]} 42. Rb6 {[%emt 0:02:22]} Kh6 {[%emt 0:00:00]} 43. b5 {[%emt 0:00:00]} Kh5 {[%emt 0:00:00]} 44. Kg2 {[%emt 0:00:00]} g5 {[%emt 0:00:00]} 45. h3 {[%emt 0:00:00]} g4 {[%emt 0:00:00]} 46. hxg4+ {[%emt 0:00:00]} Kxg4 {[%emt 0:00:00]} 47. Rb8 {[%emt 0:00:00]} Kf4 {[%emt 0:00:00]} 48. b6 {[%emt 0:00:00]} Rb2 {[%emt 0:00:00]} 49. Rb7 {[%emt 0:00:00]} Rb3 {[%emt 0:00:00]} 50. Rb8 {[%emt 0:00:00]} Rb2 {[%emt 0:00:00]} 51. b7 {[%emt 0:00:00]} Rb1 {[%emt 0:00:00]} 52. Kh2 {[%emt 0:00:00]} Rb3 {[%emt 0:00:00]} 53. Kg1 {[%emt 0:00:00]} Rb2 {[%emt 0:00:00]} 54. Kg2 {[%emt 0:00:00]} Rb1 {[%emt 0:00:00]} 55. Kh2 {[%emt 0:00:00]} Rb3 {[%emt 0:00:00]} 56. Kg2 {[%emt 0:00:00]} Rb1 {[%emt 0:00:00]} 57. Kh2 {[%emt 0:00:00]} Rb3 {[%emt 0:00:00]} 58. Kg2 {[%emt 0:00:00]} Rb1 {[%emt 0:00:00]} 59. Kh2 {[%emt 0:00:00]} Rb3 {[%emt 0:00:00]} 1/2-1/2